Cogmind - Beta 14 @@@ ROGUE MODE // 2024.10.07 @ 18:15:00 Player: THN-L0C Result: Destroyed by P-60 Hacker with Shock Rifle Performance ------------- Evolutions (4) 2000 Regions Visited (5) 1000 Robots Destroyed (47) 235 Value Destroyed (1664) 1664 Prototype IDs (12) 240 Alien Tech Used (0) 0 Bonus (2191) 2191 TOTAL SCORE: 7330 Bonus ------- Delivered SUBCON Basin 2000 Registered with UFD 300 Friendly Fire -109 Cogmind --------- Core Integrity 0/850 Matter 209/300 Energy 85/100 System Corruption 12% Temperature Cool (0) Movement Walking (180) Ox1 Location -6/Factory Parts ------- > --- POWER (2) -------- (None) > --- PROPULSION (3+3) - Arachnoskeleton > --- UTILITY (8) ------ Huge Storage Unit Machine Analyzer Transmission Jammer Tech Extrapolator > --- WEAPON (2) ------- (None) > --- INVENTORY (25) --- High-capacity Storage Unit Matter Compressor (0) Enhanced Optical Array Advanced Sensor Array Advanced ECM Suite Thermal Shield HERF Cannon Hypervelocity Gauss Rifle Long-range Missile Launcher CPS Tube (2) CPS Tube (2) CPS Tube (2) Multitool Power Sword DRS Beacon (Ready) Peak State ------------ > --- POWER ------------ Angular Momentum Engine Angular Momentum Engine > --- PROPULSION ------- Medium Treads Armored Huge Wheel > --- UTILITY ---------- Improved Cooling System Huge Storage Unit Machine Analyzer Transmission Jammer Layered Light Armor Plating Improved Hacking Suite Improved Hacking Suite Tech Extrapolator > --- WEAPON ----------- Heavy Plasma Cannon Hypervelocity Gauss Rifle > --- INVENTORY -------- Angular Momentum Engine Arachnoskeleton Armored Huge Wheel High-capacity Storage Unit Matter Compressor Enhanced Optical Array Seismic Detector Advanced ECM Suite Improved Propulsion Shielding Layered Light Armor Plating Layered Light Armor Plating Thermal Shield HERF Cannon HERF Cannon Long-range Missile Launcher Long-range Missile Launcher CPS Tube CPS Tube CPS Tube Multitool Power Sword DRS Beacon [Rating: 75] Favorites ----------- Power Subdweller Power Source Engine Subdweller Power Source Power Core Nuclear Core Propulsion Spiked Treads Treads Spiked Treads Leg Arachnoskeleton Wheel Armored Huge Wheel Utility High-capacity Storage Unit Device Improved Terrain Scanner Storage High-capacity Storage Unit Processor Tech Extrapolator Hackware Improved Hacking Suite Protection Hardened Light Armor Plating Weapon Subdweller Machine Gun Energy Cannon Light EM Pulse Cannon Ballistic Gun Subdweller Machine Gun Launcher Rocket Launcher Special Weapon Mining Laser Impact Weapon Makeshift Hammer Build | -11 -10 -10 -8 -8 -6 ------- Run | Yrd Mat Sub Rec Scr Fac Slots Evolved 8 | . . . . . 8 Power 1 | . . . . . 1 Propulsion 1 | . . . . . 1 Utility 6 | . . . . . 6 Weapon . | . . . . . . Parts Attached 163 | 7 15 58 6 14 63 Power 14 | 1 1 4 . 2 6 Engine 10 | 1 1 4 . 1 3 Core 4 | . . . . 1 3 Reactor . | . . . . . . Propulsion 15 | 2 3 4 . 1 5 Treads 11 | 2 3 4 . . 2 Leg 1 | . . . . . 1 Wheel 3 | . . . . 1 2 Hover . | . . . . . . Flight . | . . . . . . Utility 71 | 2 4 23 2 4 36 Device 32 | 1 2 13 . 1 15 Storage 11 | 1 2 3 1 2 2 Processor 3 | . . . . . 3 Hackware 4 | . . . . . 4 Protection 21 | . . 7 1 1 12 Artifact . | . . . . . . Weapon 63 | 2 7 27 4 7 16 Energy Gun . | . . . . . . Energy Cannon 6 | . . 1 2 1 2 Ballistic Gun 22 | 2 3 9 2 3 3 Ballistic Cannon . | . . . . . . Launcher 14 | . 4 6 . 1 3 Special Weapon 13 | . . 7 . 2 4 Impact Weapon 8 | . . 4 . . 4 Slashing Weapon . | . . . . . . Piercing Weapon . | . . . . . . Special Melee Weapon . | . . . . . . Unidentified Prototypes . | . . . . . . Parts Lost 24 | . . 4 . . 20 Power 6 | . . 2 . . 4 Propulsion 3 | . . . . . 3 Utility 8 | . . . . . 8 Weapon 7 | . . 2 . . 5 Highest Loss Streak 9 | . . 2 . . 9 To Critical Strikes . | . . . . . . Average Slot Usage (%) 92 | . 100 98 85 82 90 Engine 13 | . 14 13 14 12 10 Treads 22 | . 28 28 28 7 5 Wheel 2 | . . . . 10 5 Device 9 | . 14 11 . 10 18 Storage 13 | . 14 14 13 13 5 Protection 1 | . . . . 3 7 Energy Cannon 4 | . . 5 6 1 2 Ballistic Gun 13 | . 18 10 21 17 2 Launcher 5 | . 9 8 . 2 2 Impact Weapon 1 | . . 2 . . 3 Peak Build Rating 75 | 7 11 37 37 30 75 Average Rating 24 | 5 9 16 32 21 64 On Entrance 17 | . 7 11 37 18 30 Naked Turns . | . . . . . . Heaviest Build 217 | 11 32 213 217 213 131 Greatest Support 50 | 40 40 40 40 40 50 Greatest Overweight (x) 5 | 1 . 5 5 5 4 Average Overweight (x) 1 | . . 1 4 2 3 Largest Inventory Capacity 35 | 8 15 35 35 35 25 Average Capacity 22 | 7 12 20 33 20 22 Most Carried 35 | 1 15 35 35 25 25 Average Carried 21 | . 11 19 31 20 22 Final Capacity 35 | 8 15 35 35 25 25 Final Carried 35 | 1 15 35 21 25 15 Class Distribution -------------------- 67% | Mutant 24% | Hauler-Mutant Dominant Class ---------------- Mutant | -10/Materials Mutant | -10/Subcaves Hauler-Mutant | -8/Recycling Mutant | -8/Scraptown Hacker-Mutant | -6/Factory Resources | -11 -10 -10 -8 -8 -6 ----------- Run | Yrd Mat Sub Rec Scr Fac Matter Collected 2896 | 273 223 1197 90 355 758 Remotely . | . . . . . . Salvage Created 1546 | 30 267 587 90 178 394 Parts 104 | 3 17 31 3 25 25 Haulers Intercepted 1 | . 1 . . . . Recyclers Shooed 2 | 1 . . . . 1 Parts Field Recycled . | . . . . . . Retrieved Matter . | . . . . . . Parts Self-Destructed 29 | . . 5 . 24 . Prevented 2 | . . 2 . . . Kills | -11 -10 -10 -8 -8 -6 ------- Run | Yrd Mat Sub Rec Scr Fac Combat Hostiles Destroyed 42 | . 9 21 1 . 11 Melee 2 | . . . . . 2 Guns 9 | . 4 3 1 . 1 Cannons 11 | . . 6 . . 5 AOE 20 | . 5 12 . . 3 Classes Destroyed 12 | 1 3 4 1 . 3 Worker 1 | . . . . . 1 Tunneler 2 | 2 . . . . . Hauler 1 | . 1 . . . . Recycler 1 | . . . 1 . . Swarmer 11 | . 3 5 . . 3 Grunt 8 | . 6 1 . . 1 Sentry 3 | . . 2 1 . . Hunter 4 | . . . . . 4 Programmer 3 | . . . . . 3 Artisan 2 | . . 2 . . . Cobbler 1 | . . 1 . . . Subdweller 13 | . . 13 . . . Best Kill Streak 3 | 2 3 3 1 . 3 Combat Bots Only 3 | . 3 3 1 . 2 Max Kills in Single Turn 3 | 1 3 1 1 . 2 Gunslinging . | . . . . . . Exploded 2 | . 2 1 . . 2 Melee 1 | . . . . . 1 Uniques/NPCs Destroyed . | . . . . . . Combat | -11 -10 -10 -8 -8 -6 -------- Run | Yrd Mat Sub Rec Scr Fac Hostile Shots Fired 531 | . 22 80 8 . 421 Missed 170 | . 6 21 2 . 141 Damage Taken 6078 | . 168 1075 85 . 4750 Core 1014 | . 25 136 . . 853 Absorbed by Shields . | . . . . . . Redirected to Shielding 111 | . . 28 . . 83 Ignored by Resistances 45 | . . . . . 45 Regen/Repaired (Parts) 552 | . . . . . 552 Core Remaining (%) 67 | 100 . . . 35 . Volleys Fired 231 | 9 20 141 12 12 37 Largest 2 | 2 2 2 2 1 2 Hottest 133 | 40 53 100 80 80 133 Shots Fired 286 | 18 32 156 17 12 51 Gun 110 | 18 25 32 11 . 24 Cannon 54 | . . 21 6 8 19 Launcher 43 | . 7 28 . . 8 Special 79 | . . 75 . 4 . Kinetic 110 | 18 25 32 11 . 24 Thermal 108 | . . 75 6 8 19 Explosive 43 | . 7 28 . . 8 Electromagnetic 21 | . . 21 . . . Robot Hit Streak 21 | 10 13 12 12 21 9 Robot Miss Streak 3 | 2 1 3 . 1 3 Penetration Max 1 | . . . . . 1 Secondary Targets 1 | . . . . . 1 Max Gunslinging Chain 1 | . . . . . 1 Shots Hit Robots 141 | 12 19 56 10 11 33 Core Hits 101 | 5 17 38 2 4 35 Critical Kills . | . . . . . . Critical Parts Destroyed 3 | 1 . . 1 . 1 Critical Strikes 3 | 1 . . 1 . 1 Destroy 2 | 1 . . 1 . . Smash 1 | . . . . . 1 Melee Attacks 56 | . . 29 . . 27 Impact 56 | . . 29 . . 27 Slashing . | . . . . . . Piercing . | . . . . . . Sneak Attacks 2 | . . 2 . . . Combat Hostiles . | . . . . . . Follow-up Attacks . | . . . . . . Damage Inflicted 5158 | 90 498 2161 212 223 1974 Guns 1004 | 90 146 264 212 . 292 Cannons 818 | . . 270 . 223 325 Explosions 2896 | . 352 1464 . . 1080 Melee 440 | . . 163 . . 277 Ramming . | . . . . . . Kinetic 1004 | 90 146 264 212 . 292 Thermal 548 | . . . . 223 325 Explosive 2896 | . 352 1464 . . 1080 Electromagnetic 270 | . . 270 . . . Impact 440 | . . 163 . . 277 Slashing . | . . . . . . Piercing . | . . . . . . Highest Corruption 12 | . . . . . 12 Average Corruption 1 | . . . . . 1 Corruption Purged . | . . . . . . Corruption Blocked . | . . . . . . Effects 9 | . . . . . 9 Message Errors 4 | . . . . . 4 Matter Fused 2 | . . . . . 2 Heat Flow Errors 1 | . . . . . 1 Data Loss (minor) 2 | . . . . . 2 Overload Shots . | . . . . . . Overflow Damage 224 | . 5 100 . 4 115 Projectiles 25 | . . . . 4 21 Explosions 26 | . 5 17 . . 4 Melee 173 | . . 83 . . 90 Knockbacks 3 | . . 1 . . 2 Impact 3 | . . 1 . . 2 Kinetic . | . . . . . . Secondary . | . . . . . . Self-Inflicted Damage 262 | . 13 47 . . 202 Shots 6 | . 1 1 . . 4 Rammed . | . . . . . . Targets Rammed . | . . . . . . Kicked . | . . . . . . Crushed . | . . . . . . Highest Temperature 352 | . 12 . 60 126 352 Average Temperature 103 | . 8 . 20 48 133 Received Heat Transfer 675 | . 48 123 18 . 486 Effects 4 | . . . . . 4 Interference 3 | . . . . . 3 Damage (minor) 1 | . . . . . 1 Siege Activations . | . . . . . . Robots Corrupted 1 | . . 1 . . . Combat Hostiles . | . . . . . . Parts Fried 2 | . . 2 . . . Impact Corruptions 6 | . . 3 . . 3 Robots Melted . | . . . . . . Combat Hostiles . | . . . . . . Parts Melted . | . . . . . . Heat Transferred 771 | . . . . 296 475 Parts Sabotaged . | . . . . . . Parts Stolen . | . . . . . . Parts Stripped . | . . . . . . Power Chain Reactions . | . . . . . . Alert | -11 -10 -10 -8 -8 -6 ------- Run | Yrd Mat Sub Rec Scr Fac Peak Influence 246 | 10 246 . 73 . 236 Initial 73 | . 6 . 73 . . Average 29 | 2 108 . 9 . 42 Maximum Alert Level 1 | . 1 . . . 1 Low Security (%) 99 | 100 96 . 100 . 97 Level 1 . | . 3 . . . 2 Level 2 . | . . . . . . Level 3 . | . . . . . . Level 4 . | . . . . . . Level 5 . | . . . . . . High Security . | . . . . . . Max Security . | . . . . . . Squads Dispatched 4 | . . . . . 4 Investigation . | . . . . . . Extermination 4 | . . . . . 4 Reinforcement . | . . . . . . Assault . | . . . . . . Garrison . | . . . . . . Intercept . | . . . . . . Searches Triggered . | . . . . . . Construction Impeded . | . . . . . . Haulers Reinforced . | . . . . . . Active Scanning Responses . | . . . . . . Cargo Convoy Interrupts 1 | . . . . . 1 Stealth | -11 -10 -10 -8 -8 -6 --------- Run | Yrd Mat Sub Rec Scr Fac Distress Signals 2 | . 2 . . . . Communications Jammed 20 | . . . . . 20 Distress Signals 20 | . . . . . 20 Times Spotted 80 | . 16 26 1 . 37 Peak Tracking Total 13 | . 4 4 1 . 13 Tactical Retreats 8 | . . 2 . . 6 Traps | -11 -10 -10 -8 -8 -6 ------- Run | Yrd Mat Sub Rec Scr Fac Traps Triggered 1 | . . 1 . . . Indirectly . | . . . . . . Trap Hack Attempts . | . . . . . . Triggered . | . . . . . . Disarmed . | . . . . . . Reprogrammed . | . . . . . . Reused . | . . . . . . Traps Extracted . | . . . . . . Installed . | . . . . . . Triggered . | . . . . . . Machines | -11 -10 -10 -8 -8 -6 ---------- Run | Yrd Mat Sub Rec Scr Fac Machines Disabled 10 | . 1 2 . . 7 Max in Single Turn 4 | . 1 1 . . 4 Garrison Access 1 | . . . . . 1 Machines Repaired . | . . . . . . Machines Dismantled . | . . . . . . Machines Sabotaged . | . . . . . . Overloaded Fab Kills . | . . . . . . Hacking | -11 -10 -10 -8 -8 -6 --------- Run | Yrd Mat Sub Rec Scr Fac Machines Accessed 34 | . 8 4 8 2 12 Terminals 20 | . 6 . 6 . 8 Fabricators 1 | . . . . . 1 Repair Stations 2 | . 1 . . . 1 Recycling Units 2 | . 1 . 1 . . Scanalyzers 1 | . . . . . 1 Garrison Access 1 | . . . . . 1 Total Hacks 105 | . 21 17 38 7 22 Successful 68 | . 8 17 24 7 12 Failed 37 | . 13 . 14 . 10 Catastrophic 7 | . 1 . 1 . 5 Database Lockouts . | . . . . . . Manual 35 | . 16 . 13 . 6 Terminals 44 | . 16 . 18 . 10 Fabricators 2 | . . . . . 2 Repair Stations 9 | . 3 . . . 6 Recycling Units 3 | . 2 . 1 . . Scanalyzers 3 | . . . . . 3 Garrison Access 1 | . . . . . 1 Terminal Hacks 49 | . . 17 23 7 2 Record 40 | . . 14 19 7 . Open Door 1 | . . 1 . . . Level Access Points 1 | . . . 1 . . Branch Access Points 1 | . . . 1 . . Terminal Index 1 | . . . . . 1 Alert Level 1 | . . . . . 1 Zone Layout 2 | . . . 2 . . Derelict Proto ID Bank 1 | . . 1 . . . Release Object 1 | . . 1 . . . Fabricator Hacks 1 | . . . . . 1 Build 1 | . . . . . 1 Repair Station Hacks 7 | . 1 . . . 6 Scan Component 4 | . 1 . . . 3 Repair 3 | . . . . . 3 Recycling Unit Hacks 1 | . 1 . . . . Retrieve Components 1 | . 1 . . . . Scanalyzer 2 | . . . . . 2 Insert Component 1 | . . . . . 1 Analyze 1 | . . . . . 1 Garrison Access Hacks 1 | . . . . . 1 Seal Access 1 | . . . . . 1 Unauthorized Hacks 7 | . 6 . 1 . . Terminals 6 | . 6 . . . . Operators 1 | . 1 . . . . Skim 5 | . 5 . . . . Fabricators . | . . . . . . Repair Stations . | . . . . . . Recycling Units 1 | . . . 1 . . Mask 1 | . . . 1 . . Scanalyzers . | . . . . . . Garrison Access . | . . . . . . Data Cores Recovered . | . . . . . . Used . | . . . . . . Hacking Detections 17 | . 7 . 6 . 4 Full Trace Events 1 | . 1 . . . . Feedback Events . | . . . . . . Feedback Blocked . | . . . . . . Robot Schematics Acquired . | . . . . . . Robots Built . | . . . . . . Authchips . | . . . . . . Time . | . . . . . . Total Robot Build Rating . | . . . . . . Part Schematics Acquired 3 | . . . . . 3 Parts Built 2 | . . . . . 2 Authchips . | . . . . . . Time 117 | . . . . . 117 Total Part Build Rating 14 | . . . . . 14 Parts Repaired 3 | . . . . . 3 Time 102 | . . . . . 102 Parts Recycled . | . . . . . . Recycled Matter . | . . . . . . Retrieved Matter . | . . . . . . Retrieved Components 10 | . 10 . . . . Parts Scanalyzed 1 | . . . . . 1 Part Schematics Acquired 1 | . . . . . 1 Parts Damaged . | . . . . . . Bothacking | -11 -10 -10 -8 -8 -6 ------------ Run | Yrd Mat Sub Rec Scr Fac Used RIF Installer . | . . . . . . Robots Hacked . | . . . . . . Non-combat . | . . . . . . Combat . | . . . . . . Robot Hacks Applied . | . . . . . . Relay Couplers Released . | . . . . . . Fabnet Peak Effective % . | . . . . . . Robots Rewired . | . . . . . . Allies Hacked . | . . . . . . Hacks Repelled . | . . . . . . Allies | -11 -10 -10 -8 -8 -6 -------- Run | Yrd Mat Sub Rec Scr Fac Total Allies . | . . . . . . Largest Group . | . . . . . . Highest-Rated Group . | . . . . . . Highest-Rated Ally . | . . . . . . Total Orders . | . . . . . . Ally Attacks . | . . . . . . Total Damage . | . . . . . . Kills . | . . . . . . Allies Corrupted . | . . . . . . Allies Melted . | . . . . . . Intel | -11 -10 -10 -8 -8 -6 ------- Run | Yrd Mat Sub Rec Scr Fac Robot Analysis Total . | . . . . . . Derelict Logs Recovered 7 | . . 3 . 4 . Drone Launches . | . . . . . . Drone Recoveries . | . . . . . . Exploration | -11 -10 -10 -8 -8 -6 ------------- Run | Yrd Mat Sub Rec Scr Fac Turns Passed 27309 | 93 937 14233 5259 4426 2361 Spaces Moved 8315 | 40 494 2892 909 2758 1222 Core 6 | 6 . . . . . Treads 4751 | 34 494 2892 909 422 . Legs 27 | . . . . . 27 Wheels 3531 | . . . . 2336 1195 Hover . | . . . . . . Flight . | . . . . . . Fastest Speed 50 | 50 160 160 160 115 130 Average Speed 240 | 146 160 274 566 152 148 Slowest Speed 660 | 160 160 660 660 660 270 Overloaded Moves . | . . . . . . Propulsion Burnouts . | . . . . . . Robots Hopped . | . . . . . . Cave-ins Triggered . | . . . . . . Exploration Rate (%) 65 | 5 81 95 91 93 25 Regions Visited 5 Branch Regions 3 Pre-discovered Areas 6 | . 2 1 . 3 . Known Exits Taken 2 | . 1 . . 1 . Unknown Exits Taken 3 | 1 . 1 1 . . Scrap Searched 11 | . . 5 . 6 . Spaces Dug 74 | . 18 32 6 . 18 Terrain Destroyed 366 | . 53 197 6 . 110 Melee 29 | . . 13 . . 16 Projectile 45 | . . 31 6 . 8 AOE 292 | . 53 153 . . 86 Terrain Rammed . | . . . . . . Walls Destroyed . | . . . . . . Machines Disabled . | . . . . . . Actions | -11 -10 -10 -8 -8 -6 --------- Run | Yrd Mat Sub Rec Scr Fac Total 15173 | 57 617 8844 1013 2960 1682 Wait 6196 | 1 60 5677 52 125 281 Move 8310 | 39 493 2891 908 2757 1222 Hop . | . . . . . . Pick Up 126 | 1 18 31 17 34 25 Fast Attach 15 | 7 . 2 1 3 2 Attach 28 | . . 3 1 5 19 Detach 3 | . . 1 . 2 . Swap 120 | . 15 53 4 6 42 Drop 81 | . 11 16 18 15 21 Fire 231 | 9 20 141 12 12 37 Melee 56 | . . 29 . . 27 Ram . | . . . . . . Kick . | . . . . . . Crush . | . . . . . . Escape Stasis . | . . . . . . Rewire 1 | . . . . 1 . Trap . | . . . . . . Miscellaneous 6 | . . . . . 6 Route ------- -11/Scrapyard -10/Materials (discovered 5 exits: *Mat x3 / [*Min] / *Sub) -10/Subcaves (discovered 3 exits: [*Mat x2] / *Rec) -8/Recycling (discovered 2 exits: *Fac / *Scr) -8/Scraptown (discovered 2 exits: *Fac x2) -6/Factory (discovered 2 exits: Fac / [*Low]) History --------- Turn | Location | Event 16 | -11/Scrapyard | Discovered new exit (range 15) 94 | -11/Scrapyard | Entered Materials 213 | -10/Materials | Discovered new exit (range 16) 308 | -10/Materials | Build established: Mutant 591 | -10/Materials | Discovered new exit (range 11) 771 | -10/Materials | Discovered new exit (range 15) 830 | -10/Materials | Learned 2 Storage zone layouts 876 | -10/Materials | Learned location of 1 exit from Storage 913 | -10/Materials | Identified exit to Subcaves 938 | -10/Materials | Learned location of Subcaves (-10) 960 | -10/Materials | Identified exit to Materials 994 | -10/Materials | Derelicts attacked the area 1031 | -10/Materials | Entered Subcaves 1031 | -10/Subcaves | Learned Materials interactive machine intel 1190 | -10/Subcaves | Shifting Twisted Machinery released Mak. Hammer 1245 | -10/Subcaves | Shifting Twisted Machinery released Mak. Axe 2612 | -10/Subcaves | Visited Clippyterm 2616 | -10/Subcaves | Learned Factory trap positions 2616 | -10/Subcaves | Learned Factory emergency access door positions 4006 | -10/Subcaves | Ambushed by Subdweller buried in earth 4192 | -10/Subcaves | Shifting Twisted Machinery released Scrap Shield 4269 | -10/Subcaves | Shifting Twisted Machinery released Sub. Monowheel 5214 | -10/Subcaves | Shifting Twisted Machinery released Sub. Machine Gun 5228 | -10/Subcaves | Shifting Twisted Machinery released Spk. Treads 5548 | -10/Subcaves | Learned location of Storage (-8) 5669 | -10/Subcaves | A swath of the cavern ceiling suddenly collapsed 9725 | -10/Subcaves | Visited 4L-MR0's lab 9774 | -10/Subcaves | Found Arachnoskeleton 9917 | -10/Subcaves | Ambushed by angry Subdweller bent on revenge 10185 | -10/Subcaves | Core integrity fell below 50% 10663 | -10/Subcaves | Discovered new exit (range 16) 12037 | -10/Subcaves | Discovered new exit (range 10) 12043 | -10/Subcaves | Learned Materials interactive machine intel 12095 | -10/Subcaves | Discovered new exit (range 13) 13866 | -10/Subcaves | Build established: Hauler-Mutant 14627 | -10/Subcaves | Found SUBCON Basin 15264 | -10/Subcaves | Entered Recycling 16951 | -8/Recycling | Discovered new exit (range 6) 18216 | -8/Recycling | Identified exit to Factory 19713 | -8/Recycling | Scanned before Scraplab entrance 19816 | -8/Recycling | Build established: Subdweller-Mutant 20140 | -8/Recycling | Build established: Hauler-Mutant 20409 | -8/Recycling | Entered Scraplab 20510 | -8/Recycling | Discovered new exit (range 3) 20523 | -8/Recycling | Entered Scraptown 20861 | -8/Scraptown | Build established: Mutant 20897 | -8/Scraptown | Visited CPS Storage 20955 | -8/Scraptown | Visited UFD Registry 20955 | -8/Scraptown | Registered with UFD as "Roughdriver" 20988 | -8/Scraptown | Visited Cyclists 21056 | -8/Scraptown | Visited Comm Corps 21277 | -8/Scraptown | Visited Symbiants 21404 | -8/Scraptown | Heard Great Nut preacher, LISTEN AND RECITE! 21777 | -8/Scraptown | Discovered exit to Factory (range 11) 21849 | -8/Scraptown | Scanned Subdweller tech in exchange for log data 21852 | -8/Scraptown | Learned Research security intel 21853 | -8/Scraptown | Learned location of Testing (-2) 21855 | -8/Scraptown | Learned location of 1 exit from Factory 21856 | -8/Scraptown | Learned 12 Research zone layouts 21947 | -8/Scraptown | Guru changed UFD alias to "Softboard" 22020 | -8/Scraptown | Visited Red Mages 22065 | -8/Scraptown | Visited Spacefarers 22206 | -8/Scraptown | Visited Junk Repository 22259 | -8/Scraptown | Visited Observation Area 22318 | -8/Scraptown | Visited Science Guys 22409 | -8/Scraptown | Delivered Scrap Shield to a Scientist 22535 | -8/Scraptown | Visited Science Testing Area 22567 | -8/Scraptown | Visited Scrap Suit Storage 22674 | -8/Scraptown | Visited Junk Repository 22713 | -8/Scraptown | Visited Abandonware Association 22739 | -8/Scraptown | Learned abandonware demo "POISON.EXE" 22771 | -8/Scraptown | Visited DA-N13 Charitable Foundation 22778 | -8/Scraptown | Found DCF Scrap (26 items) 22812 | -8/Scraptown | Visited Derelict Rescue Squad 22822 | -8/Scraptown | Found DRS Beacon 22854 | -8/Scraptown | Visited Curators Association 22959 | -8/Scraptown | Visited SPCMW 23052 | -8/Scraptown | Entered Cyclist Reading Room 23057 | -8/Scraptown | Learned location of Zion (-6) 24828 | -8/Scraptown | Discovered exit to Factory (range 5) 24949 | -8/Scraptown | Entered Factory 24949 | -6/Factory | Evolved 8 slots: Power x1, Propulsion x1, Utility x6 24950 | -6/Factory | Identified exit to Factory 24951 | -6/Factory | Loaded intel: 96 trap records 25751 | -6/Factory | Build established: Infiltrator-Mutant 26056 | -6/Factory | Fabricated HERF Cannon? 26477 | -6/Factory | Build established: Mutant 26572 | -6/Factory | Discovered new exit (range 16) 26831 | -6/Factory | Repaired Multitool 26852 | -6/Factory | Build established: Hacker-Mutant 26859 | -6/Factory | Repaired Hcp. Storage Unit 26906 | -6/Factory | Repaired Arm. Huge Wheel 27226 | -6/Factory | Cargo convoy interrupted 27240 | -6/Factory | Core integrity fell below 50% 27251 | -6/Factory | Attached Arachnoskeleton, gained temporary slots: Propulsion x3 27270 | -6/Factory | Core integrity fell below 20% 27273 | -6/Factory | System corruption reached 10% 27276 | -6/Factory | Lost 9 parts (2p2n3u2w) 27310 | -6/Factory | Destroyed by P-60 Hacker with Shock Rifle Last Messages --------------- 27281_ K-01 Serf collects debris. 27282_ Lyr. Light Armor Plating destroyed. 27283_ Penetrated by Slug. 27283_ HERF Cannon destroyed. 27285_ K-01 Serf collects debris. 27288_ Penetrated by Slug. 27288_ Angular Momentum Engine destroyed. 27288_ K-01 Serf collects debris. 27289_ Acquired 13 matter. 27289_ P-60 Hacker resets A-27 Freighter, system corruption cleaned. 27290_ System corrupted: Matter fused (-8). 27291_ Imp. Propulsion Shielding destroyed. 27291_ Lyr. Light Armor Plating destroyed. 27292_ K-01 Serf collects debris. 27293_ Slug penetrates Wall. 27294_ P-60 Hacker resets K-01 Serf, system corruption cleaned. 27300_ K-01 Serf collects debris. 27300_ The unstable cave ceiling collapses. 27300_ P-60 Hacker crushed by falling debris. 27303_ K-01 Serf collects debris. Map ----- +----------------------------------------------------+ | ????^^^??????????????????????????????????????????? | | ????^^^??"""?"""?????????????????????????????????? | | ?????????"""?"""?????????????????????????????????? | | ?????????"""?"""?????????????????????????????????? | | ?????????????????????????????????????????????????? | | ?????????????????????????????????????????????????? | | ?????????????????????????????????????????????????? | | ?????????????????????????????????????????????????? | | ?????????????????????????????????????????????????? | | ?????????????????????????????????????????????????? | | ?????????????????????????????????????????????????? | | ?????????????????????????????????????????????????? | | ?????????????????????????????????????????????????? | | ?????????????????????????????????????????????????? | | ?????????????????????????????????????????????????? | | ?????????????????????????????????????????????????? | | ??????????????########???????????????????????????? | | ###???????????# """ #???????????????????????????? | | #????#####??# """ #???????????????????????????? | | # ####### #### """ #???????????????????????????? | | #/## ## ## !#???????????????????????????? | | =* # ##! = #?????????########??????????? | | = # | #???####### ! !#??????????? | | * ####+"##???# # #??????????? | | =* # #;;i ###### [ # " " #??????????? | | %x xxA p p @ < + "Y" #??????????? | | ! # ## p ###### # """ #??????????? | | ####*##????# # #??????????? | | ##??# ##????## ##############?????? | | #???# #??????# # """"" #?????? | | ##???# #??????# + """"" #?????? | | ! #????# #??????# # """ #?????? | | ##????# #??????# # /#?????? | | ###+#+######???#? ??????# # #?????? | | ?? ??????? ? ??????# ##############?????? | | ? #?????? ? ??????# ###########????????? | | #?????? #########?# # #????????? | | #?????? # ! ?# #] = #????????? | | #?????? # # # #########? | | ####+######???? # # # """ + #? | | #???# #?? """" + + """ "####### #? | | """" #???# +?? """" # # """ T#?????# #? | | " """" #???# #?? """" ]# #! "#?????# #? | | """" #??## #???"""" ?# # #???### #? | | " """" +??? +??? ?# ###############"# #? | | """" #???# #??######?# #? | | """" #???# ######T ### ##??????######### #? | | #???# #???????????????# #? | | #???# ##""########+#########?######## #? | | ##### #### #?# ! # #? | +----------------------------------------------------+ Best States ------------- Heat Dissipation 64 Coolant Potential 50 Energy Generation 31 Energy Capacity 500 Matter Stores 300 Matter Capacity 300 Sight Range 16 Robot Scan Range 16 Terrain Scan Range 16 Terrain Scan Density 10 ECM Strength 2 Jamming Range 12 Armor Coverage 800 Resistance: KI 20 Propulsion Shielding 66 Weapon Shielding 33 Evasion (%) 40 Melee Accuracy 8 Recoil Reduction 2 Offensive Hacking 24 Item Schematics ----------------- Mak. Light Armor Plating | -6/Factory | Extrapolated Beamcaster | -6/Factory | Extrapolated Hcp. Storage Unit | -6/Factory | Scanalyzed Robot Schematics ------------------ None Fabricated ------------ HERF Cannon | x2 | -6/Factory | Preloaded Alien Tech Used ----------------- None Achievements -------------- None Challenges ------------ None Game ------ Seed CatalystVoltaicAutocannon Manual? 0 Play Time 01:56:15 Cumulative 309.1 hours Start 2024.10.07 @ 14:35:21 End 2024.10.07 @ 18:15:00 Sessions 1 Manual Loads 0 Difficulty Rogue Special Mode None Game No. 246 Rogue 246 Adventurer 0 Explorer 0 Win Type - Total 2 Types 1/0/0/1/0/0/0/0/0 Lore% 74 Gallery% 79 Achievement% 59 Wizard Run 0 Options --------- Layout 2 ASCII 0 Keyboard 1 Movement Vi Keybinds 0 Fullscreen 1 Font 32/SmallcapsGlow Map View 77x44 Zoom Use 0% Tactical HUD 1 Map Filters NONE Filters NONE Steam 1 RUN: aa1c85f4-c505-4e0a-8768-4c629980c628